fUSD/lending_fUSD_20240107
["ID","MTS","AMOUNT","RATE_DAILY","PERIOD"]
[310648458,1704633041465,-41000.0,0.00023,2]
[310648460,1704633041476,-12105.79226862,0.00023,2]
[310648462,1704633041487,-4376.30088657,0.00023,2]
[310648464,1704633041499,-1478.37000005,0.00023,2]
[310648466,1704633041511,-2164.99999919,0.00023,2]
[310648468,1704633041522,-11338.6,0.00023,2]
[310648471,1704633041534,-8080.0,0.00023,2]
[310648473,1704633041546,-8593.726155,0.00023,2]
[310648475,1704633041558,-593.8178,0.00023,2]
[310648476,1704633041574,-6518.37385362,0.00023,2]
[310648477,1704633041586,-17920.73240916,0.00023,2]
[310648478,1704633041597,-310.5,0.00023,2]
[310648479,1704633041608,-409.33,0.00023,2]
[310648480,1704633041620,-7725.39317025,0.00023,2]
[310648481,1704633041632,-574.0799032,0.00023,2]
[310648482,1704633041644,-39516.69804612,0.00023,2]
[310648483,1704633041653,-29577.13234002,0.00023,2]
[310648484,1704633041664,-1758.93979561,0.00023,2]
[310648485,1704633041676,-551.04446094,0.00023,2]
[310648486,1704633041687,-683.84518153,0.00023,2]
[310648487,1704633041699,-4894.06616905,0.00023,2]
[310648510,1704633042909,-2493.21519858,0.00023,2]
[310648513,1704633042920,-442.56,0.00023,2]
[310648515,1704633042932,-424.33,0.00023,2]
[310648517,1704633042943,-4067.95519889,0.00023,2]
[310648519,1704633042955,-965.60842499,0.00023,2]
[310648521,1704633042967,-1260.0,0.00023,2]
[310648524,1704633042978,-972.93328764,0.00023,2]
[310648526,1704633042994,-3948.35274044,0.00023,2]
[310648528,1704633043006,-1213.0333137,0.00023,2]
[310648531,1704633043018,-5800.57177946,0.00023,2]
[310648533,1704633043029,-8202.08252534,0.00023,2]
[310648535,1704633043044,-2100.0,0.00023,2]
[310648538,1704633043056,-320.0,0.00023,2]
[310648545,1704633043116,-500.0,0.00023,2]
[310648547,1704633043127,-530.9219955,0.00023,2]
[310648550,1704633043140,-3456.9579334,0.00023,2]
[310648552,1704633043152,-2349.88173146,0.00023,2]
[310648554,1704633043164,-22565.37166122,0.00023,2]
[310648555,1704633043177,-3891.99660597,0.00023,2]
[310648556,1704633043190,-4915.94881528,0.00023,2]
[310648557,1704633043202,-13982.7120231,0.00023,2]
[310648558,1704633043216,-293.0,0.00023,2]
[310648559,1704633043228,-2044.80001,0.00023,2]
[310648560,1704633043239,-889.30090591,0.00023,2]
[310648561,1704633043254,-328.67813969,0.00023,2]
[310648562,1704633043266,-3315.53537595,0.00023,2]
[310648563,1704633043277,-1504.36617907,0.00023,2]
[310648565,1704633043288,-1474.5827536,0.00023,2]
[310648567,1704633043300,-386.97118136,0.00023,2]
[310648568,1704633043312,-583.75792048,0.00023,2]
[310648569,1704633043323,-556.618,0.00023,2]
[310648570,1704633043340,-25520.91865192,0.00023,2]
[310648571,1704633043352,-12318.8409709,0.00023,2]
[310648572,1704633043363,-3255.1062732,0.00023,2]
[310648573,1704633043375,-10800.0,0.00023,2]
[310648576,1704633043393,-995.23615756,0.00023,2]
[310648577,1704633043405,-292.4006,0.00023,2]
[310648578,1704633043417,-344.43099166,0.00023,2]
[310648618,1704633045903,-160.74905111,0.00022999,2]
[310648622,1704633045913,-73225.04252138,0.00023,2]
[310648637,1704633045946,-729.0,0.00023,2]
[310648642,1704633045958,-4788.45970058,0.00023,2]
[310648648,1704633045969,-967.46744386,0.00023,2]
[310648654,1704633045981,-734.02466279,0.00023,2]
[310648659,1704633045995,-2062.51466431,0.00023,2]
[310648661,1704633046007,-3618.23728068,0.00023,2]
[310648663,1704633046019,-1595.44780125,0.00023,2]
[310648665,1704633046030,-1469.4296755,0.00023,2]
[310648667,1704633046042,-1693.6,0.00023,2]
[310648669,1704633046053,-721.61109505,0.00023,2]
[310648672,1704633046064,-3150.175028,0.00023,2]
[310648674,1704633046076,-7905.28182825,0.00023,2]
[310648676,1704633046087,-13898.76994155,0.00023,2]
[310648677,1704633046120,-429.34971866,0.00023,2]
[310648678,1704633046132,-766.49480908,0.00023,2]
[310648679,1704633046143,-621.58939941,0.00023,2]
[310648680,1704633046178,-559.41865538,0.00023,2]
[310648681,1704633046190,-8752.60536458,0.00023,2]
[310648682,1704633046201,-1200.0,0.00023,2]
[310648683,1704633046213,-7766.5620899,0.00023,2]
[310648684,1704633046224,-420.11600238,0.00023,2]
[310648685,1704633046235,-413.99686295,0.00023,2]
[310648686,1704633046251,-447238.61668496,0.00023,2]
[310648687,1704633046263,-269.0,0.00023,2]
[310648688,1704633046275,-69315.47400841,0.00023,2]
[310648689,1704633046296,-285.975,0.00023,2]
[310648690,1704633046308,-1795.26069847,0.00023,2]
[310648691,1704633046320,-1307.43185899,0.00023,2]
[310648692,1704633046332,-287.8145,0.00023,2]
[310648693,1704633046344,-21743.0612813,0.00023,2]
[310648694,1704633046355,-3884.16223265,0.00023,2]
[310648711,1704633142927,1226.80033537,0.00022306,2]
[310648712,1704633142990,180.24,0.00022196,2]
[310648713,1704633154622,194.96,0.0002016,2]
[310648714,1704633154841,194.96,0.00022424,2]
[310648715,1704633183593,338.73,0.00022065,2]
[310648716,1704633190016,151.0,0.00023,7]
[310648717,1704633190345,150.24,0.00022237,2]
[310648718,1704633190567,150.24,0.00022396,2]
[310648719,1704633192428,151.0,0.00023,7]
[310648720,1704633195418,151.0,0.00023,7]
[310648721,1704633201205,151.0,0.00023,7]
[310648722,1704633204848,955.868145,0.00023,7]
[310648723,1704633208265,955.868145,0.00023,7]
[310648724,1704633212078,360.396226,0.00023,7]
[310648725,1704633215721,360.396226,0.00023,7]
[310648726,1704633220578,187.197777,0.00023,7]
[310648727,1704633253649,151.0,0.00023,7]
[310648728,1704633257296,152.255596,0.00023,7]
[310648729,1704633263569,151.0,0.00023,7]
[310648730,1704633266324,151.0,0.00023,7]
[310648731,1704633269689,151.0,0.00023,7]
[310648732,1704633272583,150.0,0.00022491,2]
[310648733,1704633310073,151.0,0.00023,7]
[310648734,1704633314645,151.0,0.00023,7]
[310648735,1704633320276,152.68,0.00022404,2]
[310648736,1704633364130,203.0,0.00021557,2]
[310648737,1704633372300,151.0,0.00023,7]
[310648738,1704633375395,151.0,0.00023,7]
[310648739,1704633382560,151.0,0.00023,7]
[310648740,1704633388440,273.756512,0.00023,7]
[310648741,1704633398883,860.28133,0.00023,7]
[310648742,1704633401655,860.28133,0.00023,7]
[310648743,1704633405326,151.0,0.00023,7]
[310648744,1704633409215,151.0,0.00023,7]
[310648745,1704633411143,151.0,0.00023,7]
[310648746,1704633449019,151.0,0.00023,7]
[310648747,1704633451832,151.0,0.00023,7]
[310648748,1704633461785,151.0,0.00023,7]
[310648749,1704633475040,151.0,0.00023,7]
[310648750,1704633477752,151.0,0.00023,7]
[310648751,1704633503689,1250.0,0.00021,3]
[310648752,1704633508686,1654.6697476,0.00020999,2]
[310648753,1704633524532,360.79,0.00021897,2]
[310648754,1704633551868,151.0,0.00023,7]
[310648755,1704633554278,267.670469,0.00023,7]
[310648756,1704633555600,151.0,0.00023,7]
[310648757,1704633556749,151.0,0.00023,7]
[310648758,1704633563795,151.0,0.00023,7]
[310648759,1704633576229,324.356604,0.00023,7]
[310648760,1704633579111,324.356604,0.00023,7]
[310648761,1704633583866,151.0,0.00023,7]
[310648762,1704633586776,151.0,0.00023,7]
[310648763,1704633588769,151.0,0.00023,7]
[310648764,1704633591744,151.0,0.00023,7]
[310648765,1704633591771,165.17,0.00022237,2]
[310648766,1704633593619,692.76,0.00021902,2]
[310648767,1704633596791,175.46,0.00019984,2]
[310648768,1704633596986,175.46,0.00022248,2]
[310648769,1704633599326,3184.00180731,0.00021982,2]
[310648770,1704633611704,151.0,0.00023,7]
[310648771,1704633614332,151.0,0.00023,7]
[310648772,1704633615314,3184.00180731,0.00021982,2]
[310648773,1704633621100,151.0,0.00023,7]
[310648774,1704633622322,727.41794714,0.00021,2]
[310648775,1704633634212,774.253197,0.00023,7]
[310648776,1704633634242,408.43,0.00021873,2]
[310648777,1704633635323,3184.00180731,0.00021982,2]
[310648778,1704633636273,1005.5232,0.0002241,2]
[310648779,1704633637698,774.253197,0.00023,7]
[310648780,1704633638703,2468.0415723,0.00022211,2]
[310648781,1704633638984,1000.0,0.0002185,2]
[310648782,1704633640300,160.58205286,0.00021,2]
[310648783,1704633640628,352.555,0.00020379,2]
[310648784,1704633642986,280.13016503,0.00021753,2]
[310648785,1704633643266,151.0,0.00023,7]
[310648786,1704633644527,254.24,0.00021867,2]
[310648787,1704633644630,155.43750853,0.0002185,2]
[310648788,1704633644914,254.24,0.00021982,2]
[310648789,1704633645137,254.24,0.00022097,2]
[310648790,1704633645374,254.24,0.00022212,2]
[310648791,1704633645580,254.24,0.00022327,2]
[310648792,1704633645785,254.24,0.00022442,2]
[310648793,1704633652299,418.45759132,0.0002185,2]
[310648794,1704633654042,1274.96750604,0.0002185,5]
[310648795,1704633654713,883.3850575,0.0002185,2]
[310648796,1704633654976,1000.0,0.00020758,2]
[310648797,1704633655169,531.37209731,0.0002185,2]
[310648798,1704633657319,2461.56085039,0.00021982,2]
[310648799,1704633657906,282.62179713,0.0002185,2]
[310648800,1704633657933,7410.66381965,0.0002185,2]
[310648801,1704633666298,165.58366484,0.0002185,2]
[310648802,1704633671676,2551.39500281,0.0002185,2]
[310648803,1704633672531,212.0,0.000274,30]
[310648804,1704633672606,151.0,0.00023,7]
[310648805,1704633672725,288.65806004,0.0002185,2]
[310648806,1704633673237,531.37209731,0.0002185,2]
[310648807,1704633673510,203.32009238,0.0002185,2]
[310648808,1704633674891,151.0,0.00023,7]
[310648809,1704633676030,1271.78422614,0.0002185,5]
[310648810,1704633679746,151.0,0.00023,7]
[310648811,1704633691229,534.52400901,0.0002185,2]
[310648812,1704633712257,500.0,0.0002185,2]
[310648813,1704633730230,500.0,0.0002185,2]
[310648814,1704633730511,151.0,0.00023,7]
[310648815,1704633735506,153.569494,0.00023,7]
[310648816,1704633738137,151.0,0.00023,7]
[310648817,1704633742759,304.12708178,0.00022455,2]
[310648818,1704633746762,2000.0,0.00021814,2]
[310648819,1704633750221,300.23412824,0.0002185,2]
[310648820,1704633753776,3672.4,0.00022237,2]
[310648821,1704633753807,1359.85,0.00022415,2]
[310648822,1704633754032,156.92,0.00021993,2]
[310648823,1704633754247,156.92,0.00022069,2]
[310648824,1704633754468,156.92,0.00022145,2]
[310648825,1704633754666,156.92,0.00022222,2]
[310648826,1704633754891,156.92,0.00022298,2]
[310648827,1704633755105,156.92,0.00022375,2]
[310648828,1704633755320,156.92,0.00022451,2]
[310648829,1704633766145,189.97,0.00022362,2]
[310648830,1704633770077,500.0,0.00022,2]
[310648831,1704633776846,200.0,0.00021918,2]
[310648832,1704633789797,155.567935,0.00023,7]
[310648833,1704633793302,151.0,0.00023,7]
[310648834,1704633802835,1030.0,0.00021958,2]
[310648835,1704633814061,151.0,0.00023,7]
[310648836,1704633817223,151.0,0.00023,7]
[310648837,1704633818787,251.75,0.00022237,2]
[310648838,1704633828898,153.97,0.00021984,2]
[310648839,1704633829092,153.97,0.0002226,2]
[310648840,1704633834253,696.827878,0.00023,7]
[310648841,1704633838454,696.827878,0.00023,7]
[310648842,1704633843880,153.82859832,0.00022406,2]
[310648843,1704633848885,153.82859829,0.00022435,2]
[310648844,1704633850510,151.0,0.00023,7]
[310648845,1704633853634,151.0,0.00023,7]
[310648846,1704633853890,153.82859829,0.00022464,2]
[310648847,1704633861684,202.75138786,0.00022428,2]
[310648848,1704633878871,200.0,0.0002173,2]
[310648849,1704633879093,15448.86,0.0002173,2]
[310648850,1704633894008,750.0,0.00022237,2]
[310648851,1704633917158,151.0,0.00023,7]
[310648852,1704633922984,394.23069969,0.00022491,2]
[310648853,1704633923509,151.0,0.00023,7]
[310648854,1704633938155,291.920943,0.00023,7]
[310648855,1704633938687,500.0,0.00022237,2]
[310648856,1704633941370,291.920943,0.00023,7]
[310648857,1704633946156,711.36,0.00022237,2]
[310648858,1704633960714,150.0,0.00022,2]
[310648859,1704633966400,150.0,0.00022,2]
[310648860,1704633969667,155.0,0.00021735,2]
[310648861,1704633972843,250.0,0.00022,2]
[310648862,1704633973072,151.0,0.00023,7]
[310648863,1704633974138,250.0,0.00022274,2]
[310648864,1704633983247,151.0,0.00023,7]
[310648865,1704633989900,151.0,0.00023,7]
[310648866,1704633998908,2087.1644,0.00022421,2]
[310648867,1704634022955,323.3,0.0002032,2]
[310648868,1704634029921,151.0,0.00023,7]
[310648869,1704634033897,161.035793,0.00023,7]
[310648871,1704634035979,151.0,0.00023,7]
[310648872,1704634040421,201.17,0.00021726,2]
[310648873,1704634041589,151.0,0.00023,7]
[310648874,1704634053312,627.14509,0.00023,7]
[310648875,1704634056008,627.14509,0.00023,7]
[310648876,1704634059865,191.26,0.00021729,2]
[310648877,1704634088353,23900.0,0.00022237,2]
[310648878,1704634095016,155.555419,0.00023,7]
[310648879,1704634101467,175.9,0.00022,2]
[310648880,1704634101846,151.0,0.00023,7]
[310648881,1704634105951,151.0,0.00023,7]
[310648882,1704634109916,151.0,0.00023,7]
[310648883,1704634146560,381.2,0.00021765,2]
[310648885,1704634161065,200.0,0.00021765,2]
[310648886,1704634164625,151.0,0.00023,7]
[310648887,1704634167483,191.172814,0.00023,7]
[310648888,1704634167890,25160.35995829,0.00022491,2]
[310648889,1704634170889,155.0,0.00022491,2]
[310648890,1704634171492,933.09409188,0.000301,90]
[310648891,1704634179347,151.0,0.00023,7]
[310648892,1704634182810,2000.0,0.00021772,2]
[310648893,1704634185926,151.0,0.00023,7]
[310648894,1704634186648,10000.0,0.00028,30]
[310648895,1704634195617,151.0,0.00023,7]
[310648896,1704634198132,156.92,0.00021935,2]
[310648897,1704634198359,156.92,0.00022078,2]
[310648898,1704634198451,151.0,0.00023,7]
[310648899,1704634198777,156.92,0.00022221,2]
[310648900,1704634199036,156.92,0.00022364,2]
[310648903,1704634201853,150.0,0.00022491,2]
[310648904,1704634217803,18972.87472611,0.00022491,2]
[310648919,1704634235032,-507.50742437,0.00022492,2]
[310648920,1704634235044,-639.29473813,0.00022492,2]
[310648921,1704634235092,-1336.37927393,0.00022492,2]
[310648922,1704634235104,-15741.12730796,0.00022492,2]
[310648923,1704634235120,-6646.80657982,0.00022492,2]
[310648924,1704634235132,-14301.11765329,0.00022492,2]
[310648925,1704634235143,-153.82859829,0.00022493,2]
[310648926,1704634235153,-4457.28348199,0.00022497,2]
[310648927,1704634235163,-156.92,0.00022506,2]
[310648928,1704634235172,-762.07720286,0.00022507,2]
[310648929,1704634235184,-13402.82009127,0.0002252,2]
[310648930,1704634235194,-153.82859829,0.00022522,2]
[310648931,1704634235205,-1903.58,0.00022522,2]
[310648932,1704634235215,-211.29,0.00022522,2]
[310648933,1704634235225,-20548.22,0.00022528,2]
[310648934,1704634235235,-7966.84,0.00022528,2]
[310648935,1704634235245,-353.99,0.00022528,2]
[310648936,1704634235255,-153.97,0.00022536,2]
[310648937,1704634235265,-500.0,0.00022548,2]
[310648938,1704634235275,-150.0,0.00022548,2]
[310648939,1704634235285,-150.0,0.00022548,2]
[310648940,1704634235295,-250.0,0.00022548,2]
[310648941,1704634235305,-175.9,0.00022548,2]
[310648942,1704634235315,-153.82859829,0.00022551,2]
[310648943,1704634235325,-150.24,0.00022555,2]
[310648944,1704634235335,-254.24,0.00022557,2]
[310648945,1704634235344,-153.82859829,0.0002258,2]
[310648946,1704634235355,-323.3,0.00022583,2]
[310648947,1704634235365,-153.82859829,0.00022609,2]
[310648948,1704634235375,-153.82859829,0.00022638,2]
[310648949,1704634235385,-156.92,0.00022649,2]
[310648950,1704634235395,-153.82859829,0.00022668,2]
[310648951,1704634235406,-492.83979718,0.00022669,2]
[310648952,1704634235415,-280.27668862,0.00022669,2]
[310648953,1704634235426,-529.40004983,0.00022669,2]
[310648954,1704634235435,-2761.4047764,0.00022669,2]
[310648955,1704634235445,-254.24,0.00022672,2]
[310648956,1704634235457,-153.82859829,0.00022697,2]
[310648957,1704634235467,-4639.76,0.000227,2]
[310648958,1704634235477,-276.67,0.000227,2]
[310648959,1704634235486,-474.00607165,0.000227,2]
[310648960,1704634235496,-170.37564968,0.00022701,2]
[310648961,1704634235506,-150.24,0.00022714,2]
[310648962,1704634235517,-686.29,0.00022714,2]
[310648963,1704634235528,-153.82859829,0.00022726,2]
[310648964,1704634235538,-381.2,0.00022743,2]
[310648966,1704634235547,-153.82859829,0.00022755,2]
[310648968,1704634235558,-204.0,0.00022761,2]
[310648970,1704634235569,-153.82859829,0.00022784,2]
[310648972,1704634235580,-254.24,0.00022788,2]
[310648974,1704634235590,-156.92,0.00022792,2]
[310648976,1704634235602,-437.2662,0.000228,2]
[310648978,1704634235612,-155.18956173,0.000228,2]
[310648979,1704634235622,-18582.0995,0.000228,2]
[310648980,1704634235633,-3903.9311,0.000228,2]
[310648981,1704634235644,-153.97,0.00022811,2]
[310648982,1704634235654,-201.17,0.00022812,2]
[310648983,1704634235664,-153.82859829,0.00022813,2]
[310648984,1704634235674,-200.0,0.00022816,2]
[310648985,1704634235684,-200.0,0.00022816,2]
[310648986,1704634235694,-800.0,0.00022816,2]
[310648987,1704634235705,-250.0,0.00022822,2]
[310648988,1704634235716,-153.82859829,0.00022842,2]
[310648989,1704634235727,-153.82859829,0.00022871,2]
[310648990,1704634235737,-150.24,0.00022873,2]
[310648991,1704634235747,-552.40998802,0.00022897,2]
[310648992,1704634235758,-162.61220786,0.00022897,2]
[310648993,1704634235768,-195.90494931,0.00022897,2]
[310648994,1704634235780,-155.47824806,0.00022898,2]
[310648995,1704634235792,-155.48692746,0.00022898,2]
[310648996,1704634235803,-155.29695429,0.00022898,2]
[310648997,1704634235816,-155.0,0.00022898,2]
[310648998,1704634235827,-162.61220786,0.00022898,2]
[310648999,1704634235838,-10921.3155,0.00022898,2]
[310649000,1704634235848,-500.0,0.00022899,2]
[310649001,1704634235858,-500.0,0.00022899,2]
[310649002,1704634235868,-162.61220786,0.00022899,2]
[310649003,1704634235879,-34035.91942384,0.000229,2]
[310649004,1704634235890,-483.27693356,0.000229,2]
[310649005,1704634235901,-153.82859829,0.000229,2]
[310649006,1704634235912,-55555.0,0.000229,2]
[310649007,1704634235922,-228.17812133,0.000229,2]
[310649008,1704634235933,-1000.0,0.000229,2]
[310649009,1704634235943,-172.38159461,0.000229,2]
[310649010,1704634235952,-162.61220786,0.000229,2]
[310649011,1704634235963,-414.60916362,0.000229,2]
[310649012,1704634235975,-254.24,0.00022903,2]
[310649013,1704634235986,-156.92,0.00022935,2]
[310649014,1704634235997,-7325.0,0.00022939,2]
[310649015,1704634236008,-19644.0,0.00022939,2]
[310649016,1704634236018,-2266.0,0.00022939,2]
[310649017,1704634236027,-8071.0,0.00022939,2]
[310649018,1704634236038,-1859.411,0.00022939,2]
[310649019,1704634236048,-219.239,0.00022939,2]
[310649020,1704634236059,-833.0,0.00022939,2]
[310649021,1704634236069,-1026.0,0.00022939,2]
[310649022,1704634236080,-1234.0,0.00022939,2]
[310649023,1704634236091,-1254.0,0.00022939,2]
[310649024,1704634236100,-1927.0,0.00022939,2]
[310649025,1704634236109,-199.94769981,0.00022988,2]
[310649026,1704634236118,-136.3609473,0.00022995,2]
[310649027,1704634236142,-1517.13960842,0.00022995,2]
[310649028,1704634236152,-133.75097158,0.00022996,2]
[310649029,1704634236165,-225.36472396,0.00022996,2]
[310649030,1704634236174,-156.55992452,0.00022996,2]
[310649031,1704634236184,-68.07535152,0.00022996,2]
[310649032,1704634236197,-132.56556346,0.00022996,2]
[310649033,1704634236206,-1394.12984185,0.00022996,2]
[310649034,1704634236216,-238.33977346,0.00022996,2]
[310649035,1704634236226,-399.98870472,0.00022996,2]
[310649036,1704634236236,-697.06047586,0.00022996,2]
[310649037,1704634236246,-159.50238733,0.00022996,2]
[310649038,1704634236256,-168.13226102,0.00022996,2]
[310649039,1704634236266,-428.24724263,0.00022996,2]
[310649040,1704634236276,-155.0,0.00022996,2]
[310649041,1704634236285,-241.7259282,0.00022996,2]
[310649042,1704634236295,-205.38957268,0.00022996,2]
[310649043,1704634236305,-287.8141388,0.00022996,2]
[310649044,1704634236314,-249.79462893,0.00022996,2]
[310649045,1704634236324,-2130.95546807,0.00022996,2]
[310649046,1704634236333,-192.29529847,0.00022996,2]
[310649047,1704634236343,-317.68758824,0.00022996,2]
[310649048,1704634236353,-417.14408965,0.00022996,2]
[310649049,1704634236364,-155.33237007,0.00022996,2]
[310649050,1704634236374,-479.49466656,0.00022996,2]
[310649051,1704634236389,-5311.83056493,0.00022996,2]
[310649052,1704634236400,-2457.88198584,0.00022996,2]
[310649053,1704634236411,-2612.12944822,0.00022996,2]
[310649054,1704634236421,-2605.87309653,0.00022996,2]
[310649055,1704634236433,-243.80387807,0.00022996,2]
[310649056,1704634236444,-156.18875619,0.00022996,2]
[310649057,1704634236455,-308.66623732,0.00022996,2]
[310649058,1704634236465,-347.7913174,0.00022996,2]
[310649059,1704634236475,-311.02578415,0.00022996,2]
[310649060,1704634236485,-1848.22696457,0.00022996,2]
[310649061,1704634236503,-414.52694398,0.00022996,2]
[310649062,1704634236516,-174.55896677,0.00022996,2]
[310649063,1704634236527,-155.0,0.00022997,2]
[310649064,1704634236537,-244.3789014,0.00022997,2]
[310649065,1704634236547,-155.0,0.00022997,2]
[310649066,1704634236557,-16713.83662006,0.00022997,2]
[310649067,1704634236567,-10510.43107562,0.00022997,2]
[310649068,1704634236576,-72.89545191,0.00022997,2]
[310649069,1704634236589,-8824.09813851,0.00022997,2]
[310649070,1704634236610,-561.46022541,0.00022997,2]
[310649083,1704634238122,-12847.93413545,0.00022898,2]
[310649084,1704634238132,-1066.62129349,0.00022997,2]
[310649085,1704634238142,-500.0,0.00022997,2]
[310649086,1704634238152,-320.12,0.00022997,2]
[310649087,1704634238162,-515.89362197,0.00022998,2]
[310649088,1704634238171,-760.18492948,0.00022998,2]
[310649089,1704634238181,-155.31338264,0.00022998,2]
[310649090,1704634238191,-3268.69294566,0.00022998,2]
[310649091,1704634238200,-643.4185131,0.00022998,2]
[310649092,1704634238210,-11510.20098288,0.00022998,2]
[310649093,1704634238219,-455.10636769,0.00022998,2]
[310649094,1704634238231,-892.17585639,0.00022998,2]
[310649095,1704634238243,-4073.0204,0.00022998,2]
[310649096,1704634238255,-290.08119832,0.00022998,2]
[310649097,1704634238268,-360.32411456,0.00022998,2]
[310649098,1704634238280,-6553.0087,0.00022998,2]
[310649099,1704634238291,-863.56873737,0.00022998,2]
[310649100,1704634238308,-4213.3,0.00022998,2]
[310649101,1704634238319,-866.63185298,0.00022998,2]
[310649102,1704634238346,-3779.24952656,0.00022998,2]
[310649103,1704634238357,-6424.50229347,0.00022998,2]
[310649104,1704634238369,-5331.69861464,0.00022998,2]
[310649105,1704634238385,-997.83561259,0.00022998,2]
[310649106,1704634238397,-2900.0,0.00022998,2]
[310649107,1704634238476,-80705.55754562,0.00022998,2]
[310649108,1704634238486,-1272.40788958,0.00022998,2]
[310649109,1704634238495,-60122.4600928,0.00022998,2]
[310649110,1704634238505,-7717.5998877,0.00022998,2]
[310649111,1704634238517,-2087.39310075,0.00022998,2]
[310649112,1704634238529,-57.85593575,0.00022998,2]
[310649113,1704634238539,-2174.7749493,0.00022998,2]
[310649114,1704634238549,-9180.6821314,0.00022998,2]
[310649115,1704634238559,-336.91956344,0.00022998,2]
[310649116,1704634238569,-69842.330377,0.00022998,2]
[310649117,1704634238578,-340.67194754,0.00022999,2]
[310649118,1704634238588,-185.43605405,0.00022999,2]
[310649119,1704634238598,-500.0,0.00022999,2]
[310649120,1704634238608,-512.759999,0.00022999,2]
[310649121,1704634238617,-150.0,0.00022999,2]
[310649122,1704634238626,-150.0,0.00022999,2]
[310649123,1704634238636,-150.0,0.00022999,2]
[310649124,1704634238646,-150.0,0.00022999,2]
[310649126,1704634238656,-150.0,0.00022999,2]
[310649128,1704634238665,-150.0,0.00022999,2]
[310649130,1704634238674,-150.0,0.00022999,2]
[310649132,1704634238684,-23834.83372027,0.00023,2]
[310649134,1704634238696,-127510.05184153,0.00023,2]
[310649136,1704634238707,-2610.74051145,0.00023,2]
[310649138,1704634238720,-2317.14819343,0.00023,2]
[310649140,1704634238733,-2694.34729205,0.00023,2]
[310649142,1704634238761,-789.9,0.00023,2]
[310649149,1704634240699,-5063.47704836,0.00023,2]
[310649150,1704634240760,-6689.12491664,0.00023,2]
[310649151,1704634241380,-106136.2699238,0.00023,2]
[310649152,1704634241392,-304.41235436,0.00023,2]
[310649153,1704634241404,-5635.34864153,0.00023,2]
[310649154,1704634241416,-1216.00454997,0.00023,2]
[310649155,1704634241446,-3969.09237031,0.00023,2]
[310649156,1704634241508,-400.10185416,0.00023,2]
[310649211,1704634243226,-263.65882223,0.00022899,2]
[310649212,1704634243504,-116.87634866,0.00022899,2]
[310649213,1704634243514,-487.94485594,0.00022939,2]
[310649214,1704634243526,-278.53014406,0.00022939,2]
[310649215,1704634243536,-322.52,0.00022939,2]
[310649216,1704634243546,-509.602,0.00022939,2]
[310649217,1704634243555,-45.90100515,0.00023,2]
[310649218,1704634243566,-950.14590883,0.00023,2]
[310649219,1704634243579,-8855.8,0.00023,2]
[310649220,1704634243591,-7518.2704,0.00023,2]
[310649221,1704634243602,-463.51367634,0.00023,2]
[310649222,1704634243614,-470.01626768,0.00023,2]
[310649223,1704634243769,-345.8302567,0.00023,2]
[310649224,1704634243781,-668.90836217,0.00023,2]